{"text_format":"1","workbook":"xlsx","n_sheets":3,"sheets":["Dashboard ","Lista de Equipamento","Dados Dinâmicos"],"not_rendered":{"charts":0,"images":0,"macros":1,"external_links":0,"defined_names":13,"comments":0,"pivot_tables":1},"unopened":[],"bounds":{"document_bytes":16777216,"sheet_cells":100000,"rows_first":2000,"rows_last":500,"rows_between":2000,"halvings":0,"cell_chars":16384,"cell_head_chars":4096},"cells_cut":0,"cells_raw":0,"read":"whole","date_system":"1900"}

{"sheet":"Dashboard ","index":0,"n_rows":20,"n_cols":6,"rows_kept":20,"cut":false,"hidden":false,"merged":[]}
[null,"Dashboard"]
[]
[]
[null,null,null,null,null,"Contagem Total"]
[null,null,null,null,null,{"$f":"GETPIVOTDATA(\"Contagem\",'Dados Dinâmicos'!$B$11)","v":3}]
[]
[null,null,null,null,null,"Custo Total Mensal"]
[null,null,null,null,null,{"$f":"GETPIVOTDATA(\"Custo Total Mensal\",'Dados Dinâmicos'!$B$11)","v":1765.5943035068672}]
[]
[null,null,null,null,null,"Custos de Funcionamento"]
[null,null,null,null,null,{"$f":"GETPIVOTDATA(\"Custos de Funcionamento\",'Dados Dinâmicos'!$B$11)","v":605}]
[]
[null,null,null,null,null,"Depreciação Mensal"]
[null,null,null,null,null,{"$f":"GETPIVOTDATA(\"Depreciação Mensal\",'Dados Dinâmicos'!$B$11)","v":659.72222222222217}]
[]
[null,null,null,null,null,"Quantia de Pagamento"]
[null,null,null,null,null,{"$f":"GETPIVOTDATA(\"Quantia de Pagamento\",'Dados Dinâmicos'!$B$11)","v":1160.5943035068672}]
[]
[null,null,null,null,null,"Valor Atual"]
[null,null,null,null,null,{"$f":"GETPIVOTDATA(\"Valor Atual \",'Dados Dinâmicos'!$B$11)","v":37966.438356164384}]

{"sheet":"Lista de Equipamento","index":1,"n_rows":9,"n_cols":20,"rows_kept":9,"cut":false,"hidden":false,"merged":[]}
[null,"Lista de Equipamento"]
[]
[null,null,null,"Realçar quando os pagamentos mensais restantes forem inferiores a: ",20]
[]
[null,"Recurso ou Número de Série","Descrição do Item\n(Fabricante e Modelo)","Localização","Condição","Vendedor","Anos de Serviço Restantes ","Valor Inicial","Sinal","Data de Compra\nou de Concessão","Prazo de Empréstimo\n(Anos)","Taxa de Empréstimo","Custos de Funcionamento Mensais","Valor Esperado no Final do Contrato","Pagamentos\nMensais Restantes","Pagamento Mensal","Custo Total Mensal","Depreciação Anual\n(Quotas Constantes)","Depreciação Mensal (Quotas Constantes)","Valor Atual"]
[null,123,"Fazer Modelo 1","Sucursal principal","Bom","Local",5,30000,5000,"2011-01-15",4,0.1,200,20000,{"$f":"IFERROR(SUMPRODUCT(--(DAY(ROW(OFFSET($A$1,,,DATE(YEAR(EQUIPAMENTO[[#This Row],[Data de Compra\nou de Concessão]])+EQUIPAMENTO[[#This Row],[Prazo de Empréstimo\n(Anos)]],MONTH(EQUIPAMENTO[[#This Row],[Data de Compra\nou de Concessão]])-1,DAY(EQUIPAMENTO[[#This Row],[Data de Compra\nou de Concessão]]))-TODAY()))+DATE(YEAR(EQUIPAMENTO[[#This Row],[Data de Compra\nou de Concessão]])+EQUIPAMENTO[[#This Row],[Prazo de Empréstimo\n(Anos)]],MONTH(EQUIPAMENTO[[#This Row],[Data de Compra\nou de Concessão]]),DAY(EQUIPAMENTO[[#This Row],[Data de Compra\nou de Concessão]]))-1)=DAY(EQUIPAMENTO[[#This Row],[Data de Compra\nou de Concessão]]))),0)","v":26},{"$f":"IFERROR(-(EQUIPAMENTO[Valor Inicial]>0)*(EQUIPAMENTO[Valor Inicial]<>EQUIPAMENTO[Sinal])*PMT(EQUIPAMENTO[Taxa de Empréstimo]/MesesNoAno,EQUIPAMENTO[Prazo de Empréstimo\n(Anos)]*MesesNoAno,EQUIPAMENTO[Valor Inicial]-EQUIPAMENTO[Sinal]),0)","v":634.06458586867973},{"$f":"EQUIPAMENTO[[#This Row],[Pagamento Mensal]]+EQUIPAMENTO[Custos de Funcionamento Mensais]","v":834.06458586867973},{"$f":"IFERROR((EQUIPAMENTO[Valor Inicial]>0)*SLN(EQUIPAMENTO[Valor Inicial],EQUIPAMENTO[Valor Esperado no Final do Contrato],EQUIPAMENTO[Prazo de Empréstimo\n(Anos)]),0)","v":2500},{"$f":"IFERROR(EQUIPAMENTO[Depreciação Anual\n(Quotas Constantes)]/MesesNoAno,0)","v":208.33333333333334},{"$f":"IFERROR(EQUIPAMENTO[Valor Inicial]-(EQUIPAMENTO[Depreciação Anual\n(Quotas Constantes)]*((TODAY()-EQUIPAMENTO[Data de Compra\nou de Concessão])/DiasNoAno)),0)","v":25500}]
[null,234,"Fazer Modelo 2","Sucursal principal","Bom","Local",4,12500,1500,"2011-03-10",3,7.7499999999999999E-2,120,3000,{"$f":"IFERROR(SUMPRODUCT(--(DAY(ROW(OFFSET($A$1,,,DATE(YEAR(EQUIPAMENTO[[#This Row],[Data de Compra\nou de Concessão]])+EQUIPAMENTO[[#This Row],[Prazo de Empréstimo\n(Anos)]],MONTH(EQUIPAMENTO[[#This Row],[Data de Compra\nou de Concessão]])-1,DAY(EQUIPAMENTO[[#This Row],[Data de Compra\nou de Concessão]]))-TODAY()))+DATE(YEAR(EQUIPAMENTO[[#This Row],[Data de Compra\nou de Concessão]])+EQUIPAMENTO[[#This Row],[Prazo de Empréstimo\n(Anos)]],MONTH(EQUIPAMENTO[[#This Row],[Data de Compra\nou de Concessão]]),DAY(EQUIPAMENTO[[#This Row],[Data de Compra\nou de Concessão]]))-1)=DAY(EQUIPAMENTO[[#This Row],[Data de Compra\nou de Concessão]]))),0)","v":16},{"$f":"IFERROR(-(EQUIPAMENTO[Valor Inicial]>0)*(EQUIPAMENTO[Valor Inicial]<>EQUIPAMENTO[Sinal])*PMT(EQUIPAMENTO[Taxa de Empréstimo]/MesesNoAno,EQUIPAMENTO[Prazo de Empréstimo\n(Anos)]*MesesNoAno,EQUIPAMENTO[Valor Inicial]-EQUIPAMENTO[Sinal]),0)","v":343.43280007691891},{"$f":"EQUIPAMENTO[[#This Row],[Pagamento Mensal]]+EQUIPAMENTO[Custos de Funcionamento Mensais]","v":463.43280007691891},{"$f":"IFERROR((EQUIPAMENTO[Valor Inicial]>0)*SLN(EQUIPAMENTO[Valor Inicial],EQUIPAMENTO[Valor Esperado no Final do Contrato],EQUIPAMENTO[Prazo de Empréstimo\n(Anos)]),0)","v":3166.6666666666665},{"$f":"IFERROR(EQUIPAMENTO[Depreciação Anual\n(Quotas Constantes)]/MesesNoAno,0)","v":263.88888888888886},{"$f":"IFERROR(EQUIPAMENTO[Valor Inicial]-(EQUIPAMENTO[Depreciação Anual\n(Quotas Constantes)]*((TODAY()-EQUIPAMENTO[Data de Compra\nou de Concessão])/DiasNoAno)),0)","v":7268.4931506849316}]
[null,345,"Fazer Modelo 2","Sucursal 1","Suficiente","Outros",1,10000,2500,"2010-09-15",4,0.08,285,1000,{"$f":"IFERROR(SUMPRODUCT(--(DAY(ROW(OFFSET($A$1,,,DATE(YEAR(EQUIPAMENTO[[#This Row],[Data de Compra\nou de Concessão]])+EQUIPAMENTO[[#This Row],[Prazo de Empréstimo\n(Anos)]],MONTH(EQUIPAMENTO[[#This Row],[Data de Compra\nou de Concessão]])-1,DAY(EQUIPAMENTO[[#This Row],[Data de Compra\nou de Concessão]]))-TODAY()))+DATE(YEAR(EQUIPAMENTO[[#This Row],[Data de Compra\nou de Concessão]])+EQUIPAMENTO[[#This Row],[Prazo de Empréstimo\n(Anos)]],MONTH(EQUIPAMENTO[[#This Row],[Data de Compra\nou de Concessão]]),DAY(EQUIPAMENTO[[#This Row],[Data de Compra\nou de Concessão]]))-1)=DAY(EQUIPAMENTO[[#This Row],[Data de Compra\nou de Concessão]]))),0)","v":22},{"$f":"IFERROR(-(EQUIPAMENTO[Valor Inicial]>0)*(EQUIPAMENTO[Valor Inicial]<>EQUIPAMENTO[Sinal])*PMT(EQUIPAMENTO[Taxa de Empréstimo]/MesesNoAno,EQUIPAMENTO[Prazo de Empréstimo\n(Anos)]*MesesNoAno,EQUIPAMENTO[Valor Inicial]-EQUIPAMENTO[Sinal]),0)","v":183.09691756126861},{"$f":"EQUIPAMENTO[[#This Row],[Pagamento Mensal]]+EQUIPAMENTO[Custos de Funcionamento Mensais]","v":468.09691756126858},{"$f":"IFERROR((EQUIPAMENTO[Valor Inicial]>0)*SLN(EQUIPAMENTO[Valor Inicial],EQUIPAMENTO[Valor Esperado no Final do Contrato],EQUIPAMENTO[Prazo de Empréstimo\n(Anos)]),0)","v":2250},{"$f":"IFERROR(EQUIPAMENTO[Depreciação Anual\n(Quotas Constantes)]/MesesNoAno,0)","v":187.5},{"$f":"IFERROR(EQUIPAMENTO[Valor Inicial]-(EQUIPAMENTO[Depreciação Anual\n(Quotas Constantes)]*((TODAY()-EQUIPAMENTO[Data de Compra\nou de Concessão])/DiasNoAno)),0)","v":5197.9452054794519}]
[null,"Total",null,null,null,null,{"$f":"SUBTOTAL(101,EQUIPAMENTO[[Anos de Serviço Restantes ]])","v":3.3333333333333335},{"$f":"SUBTOTAL(109,EQUIPAMENTO[Valor Inicial])","v":52500},{"$f":"SUBTOTAL(109,EQUIPAMENTO[Sinal])","v":9000},null,{"$f":"SUBTOTAL(101,EQUIPAMENTO[Prazo de Empréstimo\n(Anos)])","v":3.6666666666666665},{"$f":"SUBTOTAL(101,EQUIPAMENTO[Taxa de Empréstimo])","v":8.5833333333333331E-2},{"$f":"SUBTOTAL(109,EQUIPAMENTO[Custos de Funcionamento Mensais])","v":605},{"$f":"SUBTOTAL(109,EQUIPAMENTO[Valor Esperado no Final do Contrato])","v":24000},{"$f":"SUBTOTAL(101,EQUIPAMENTO[Pagamentos\nMensais Restantes])","v":21.333333333333332},{"$f":"SUBTOTAL(109,EQUIPAMENTO[Pagamento Mensal])","v":1160.5943035068672},{"$f":"SUBTOTAL(109,EQUIPAMENTO[Custo Total Mensal])","v":1765.5943035068672},{"$f":"SUBTOTAL(101,EQUIPAMENTO[Depreciação Anual\n(Quotas Constantes)])","v":2638.8888888888887},{"$f":"SUBTOTAL(101,EQUIPAMENTO[Depreciação Mensal (Quotas Constantes)])","v":219.90740740740739},{"$f":"SUBTOTAL(109,EQUIPAMENTO[Valor Atual])","v":37966.438356164384}]

{"sheet":"Dados Dinâmicos","index":2,"n_rows":15,"n_cols":8,"rows_kept":15,"cut":false,"hidden":true,"merged":[]}
[null,"Dados Dinâmicos"]
[null,"Esta folha deve permanecer oculta. Alterar a estrutura da Tabela Dinâmica nesta folha pode resultar em erros na Segmentação de Dados do Dashboard ."]
[]
[null,"Descrição do Item\n(Fabricante e Modelo)","(Tudo)"]
[null,"Localização","(Tudo)"]
[null,"Condição","(Tudo)"]
[null,"Vendedor","(Tudo)"]
[null,"Anos de Serviço Restantes ","(Tudo)"]
[null,"Prazo de Empréstimo\n(Anos)","(Tudo)"]
[]
[null,"Etiquetas de Linha","Contagem","Custos de Funcionamento","Quantia de Pagamento","Custo Total Mensal ","Depreciação Mensal","Valor Atual "]
[null,123,1,200,634.06458586867973,834.06458586867973,208.33333333333334,25500]
[null,234,1,120,343.43280007691891,463.43280007691891,263.88888888888886,7268.4931506849316]
[null,345,1,285,183.09691756126861,468.09691756126858,187.5,5197.9452054794519]
[null,"Montante Total",3,605,1160.5943035068672,1765.5943035068672,659.72222222222217,37966.438356164384]